Cogmind - Beta 13 X2 @@@ ROGUE MODE // 2024.01.20 @ 14:06:33 Player: Boris Result: Destroyed by K7-QDM(R) with Subdweller Machine Gun Performance ------------- Evolutions (0) 0 Regions Visited (2) 400 Robots Destroyed (33) 165 Value Destroyed (736) 736 Prototype IDs (10) 200 Alien Tech Used (0) 0 Bonus (0) 0 TOTAL SCORE: 1501 Bonus ------- None Cogmind --------- Core Integrity 0/250 Matter 288/300 Energy 250/250 System Corruption 0% Temperature Cool (0) Movement Treading (250) Ox1 Location -10/Subcaves Parts ------- > --- POWER (1) -------- Ion Engine > --- PROPULSION (2) --- Light Treads Spiked Treads > --- UTILITY (2) ------ High-capacity Storage Unit Makeshift Light Armor Plating > --- WEAPON (2) ------- Beam Cannon Subdweller Machine Gun > --- INVENTORY (20) --- Subdweller Power Source Light Treads Heat Sink Heat Sink Small Storage Unit High-capacity Matter Pod (168) Subdweller Optics Improved Terrain Scanner Seismic Detector Transport Network Coupler Hacking Suite Power Bank EM Pulse Gun Assault Rifle Light Cannon Dirty Datajack (20) Dirty Datajack (20) Mining Laser Multitool Scrap Shield Fragment (46) Peak State ------------ > --- POWER ------------ Ion Engine > --- PROPULSION ------- Light Treads Spiked Treads > --- UTILITY ---------- High-capacity Storage Unit Makeshift Light Armor Plating > --- WEAPON ----------- Beam Cannon Subdweller Machine Gun > --- INVENTORY -------- Subdweller Power Source Light Treads Light Treads Spiked Treads Heat Sink Heat Sink Small Storage Unit High-capacity Matter Pod Subdweller Optics Improved Terrain Scanner Seismic Detector Transport Network Coupler Light Armor Plating Hacking Suite Power Bank EM Pulse Gun Assault Rifle Light Cannon Dirty Datajack Mining Laser [Rating: 16] Favorites ----------- Power Ion Engine Engine Ion Engine Propulsion Light Treads Treads Light Treads Utility High-capacity Storage Unit Device Seismic Detector Storage High-capacity Storage Unit Processor Signal Interpreter Protection Light Armor Plating Weapon Assault Rifle Energy Gun EM Pulse Gun Energy Cannon Beam Cannon Ballistic Gun Assault Rifle Special Weapon Mining Laser Build | -11 -10 -10 ------- Run | Yrd Mat Sub Slots Evolved . | . . . Power . | . . . Propulsion . | . . . Utility . | . . . Weapon . | . . . Parts Attached 49 | 8 18 23 Power 7 | 2 3 2 Engine 7 | 2 3 2 Core . | . . . Reactor . | . . . Propulsion 6 | 2 1 3 Treads 6 | 2 1 3 Leg . | . . . Wheel . | . . . Hover . | . . . Flight . | . . . Utility 17 | 2 5 10 Device 8 | 1 1 6 Storage 2 | 1 1 . Processor 1 | . 1 . Hackware . | . . . Protection 6 | . 2 4 Artifact . | . . . Weapon 19 | 2 9 8 Energy Gun 6 | 2 2 2 Energy Cannon 2 | . . 2 Ballistic Gun 7 | . 5 2 Ballistic Cannon . | . . . Launcher . | . . . Special Weapon 4 | . 2 2 Impact Weapon . | . . . Slashing Weapon . | . . . Piercing Weapon . | . . . Special Melee Weapon . | . . . Unidentified Prototypes . | . . . Parts Lost 5 | . 1 4 Power 2 | . 1 1 Propulsion 2 | . . 2 Utility . | . . . Weapon 1 | . . 1 Highest Loss Streak 2 | . 1 2 To Critical Strikes . | . . . Average Slot Usage (%) 99 | . 99 99 Engine 13 | . 13 14 Treads 27 | . 28 27 Device 5 | . . 12 Storage 14 | . 14 14 Processor 2 | . 4 . Protection 5 | . 8 1 Energy Gun 5 | . 3 7 Energy Cannon 3 | . . 8 Ballistic Gun 17 | . 24 8 Special Weapon 1 | . . 3 Naked Turns . | . . . Heaviest Build 56 | 13 51 56 Greatest Support 40 | 40 40 40 Greatest Overweight (x) 2 | 2 1 1 Average Overweight (x) . | . . 1 Largest Inventory Capacity 20 | 8 20 20 Average Capacity 17 | 7 17 20 Most Carried 20 | 4 16 20 Average Carried 13 | 2 11 18 Final Capacity 20 | 8 20 20 Final Carried 20 | 4 15 20 Class Distribution -------------------- 98% | Mutant Dominant Class ---------------- Mutant | -10/Materials Mutant | -10/Subcaves Resources | -11 -10 -10 ----------- Run | Yrd Mat Sub Matter Collected 1221 | 280 449 492 Remotely . | . . . Salvage Created 1035 | 170 475 390 Parts 77 | 17 37 23 Haulers Intercepted 2 | . 2 . Recyclers Shooed 1 | . 1 . Parts Field Recycled . | . . . Retrieved Matter . | . . . Parts Self-Destructed 2 | . . 2 Prevented 4 | . . 4 Kills | -11 -10 -10 ------- Run | Yrd Mat Sub Combat Hostiles Destroyed 21 | . 12 9 Guns 15 | . 12 3 Cannons 5 | . . 5 AOE 1 | . . 1 Classes Destroyed 10 | 2 6 2 Builder 1 | . 1 . Tunneler 5 | 5 . . Hauler 2 | . 2 . Recycler 1 | 1 . . Operator 1 | . 1 . Watcher 2 | . 2 . Swarmer 6 | . 6 . Grunt 8 | . 6 2 Artisan 1 | . . 1 Subdweller 7 | . . 7 Best Kill Streak 3 | 2 3 3 Combat Bots Only 3 | . 3 3 Max Kills in Single Turn 2 | 1 2 1 Gunslinging 1 | . 1 . Exploded 1 | . . 1 Melee . | . . . Uniques/NPCs Destroyed . | . . . Combat | -11 -10 -10 -------- Run | Yrd Mat Sub Hostile Shots Fired 157 | . 81 76 Missed 34 | . 17 17 Damage Taken 1882 | . 633 1249 Core 263 | . 66 197 Absorbed by Shields . | . . . Regen/Repaired (Parts) 74 | . 74 . Core Remaining (%) 100 | 100 . . Volleys Fired 148 | 19 75 54 Largest 2 | 2 2 2 Hottest 120 | 90 120 100 Shots Fired 278 | 38 144 96 Gun 227 | 38 138 51 Cannon 33 | . . 33 Launcher . | . . . Special 18 | . 6 12 Kinetic 140 | . 107 33 Thermal 120 | 38 37 45 Explosive . | . . . Electromagnetic 18 | . . 18 Robot Hit Streak 42 | 7 20 42 Robot Miss Streak 6 | 3 6 1 Penetration Max . | . . . Secondary Targets 3 | . 3 . Max Gunslinging Chain 1 | . 1 . Shots Hit Robots 177 | 24 84 69 Core Hits 60 | 7 33 20 Critical Kills . | . . . Critical Parts Destroyed . | . . . Critical Strikes . | . . . Melee Attacks . | . . . Impact . | . . . Slashing . | . . . Piercing . | . . . Sneak Attacks . | . . . Combat Hostiles . | . . . Follow-up Attacks . | . . . Damage Inflicted 2606 | 278 1047 1281 Guns 2019 | 278 1037 704 Cannons 490 | . . 490 Explosions 87 | . . 87 Melee . | . . . Ramming 10 | . 10 . Kinetic 1344 | . 776 568 Thermal 1116 | 278 261 577 Explosive . | . . . Electromagnetic 136 | . . 136 Impact . | . . . Slashing . | . . . Piercing . | . . . Highest Corruption . | . . . Average Corruption . | . . . Corruption Purged . | . . . Corruption Blocked . | . . . Overload Shots . | . . . Overflow Damage . | . . . Projectiles . | . . . Explosions . | . . . Melee . | . . . Knockbacks . | . . . Impact . | . . . Kinetic . | . . . Secondary . | . . . Self-Inflicted Damage 38 | . . 38 Shots 1 | . . 1 Rammed 2 | . 2 . Targets Rammed 2 | . 2 . Kicked . | . . . Crushed . | . . . Highest Temperature 348 | 130 348 254 Average Temperature 82 | 48 104 52 Received Heat Transfer 724 | . 168 556 Effects 1 | . 1 . Matter Decay 1 | . 1 . Siege Activations . | . . . Robots Corrupted . | . . . Combat Hostiles . | . . . Parts Fried . | . . . Impact Corruptions . | . . . Robots Melted . | . . . Combat Hostiles . | . . . Parts Melted 1 | . 1 . Heat Transferred 2583 | 720 777 1086 Parts Sabotaged . | . . . Parts Stolen . | . . . Parts Stripped . | . . . Power Chain Reactions 1 | . . 1 Missiles Intercepted . | . . . Alert | -11 -10 -10 ------- Run | Yrd Mat Sub Peak Influence 164 | 30 164 . Initial 19 | . 19 . Average 52 | 12 56 . Maximum Alert Level . | . . . Low Security (%) 100 | 100 100 . Level 1 . | . . . Level 2 . | . . . Level 3 . | . . . Level 4 . | . . . Level 5 . | . . . High Security . | . . . Max Security . | . . . Squads Dispatched 2 | . 2 . Investigation . | . . . Extermination . | . . . Reinforcement 2 | . 2 . Assault . | . . . Garrison . | . . . Intercept . | . . . Searches Triggered . | . . . Construction Impeded . | . . . Haulers Reinforced . | . . . Active Scanning Responses . | . . . Cargo Convoy Interrupts . | . . . Stealth | -11 -10 -10 --------- Run | Yrd Mat Sub Distress Signals . | . . . Communications Jammed . | . . . Distress Signals . | . . . Times Spotted 41 | . 30 11 Peak Tracking Total 5 | . 5 3 Tactical Retreats . | . . . Traps | -11 -10 -10 ------- Run | Yrd Mat Sub Traps Triggered . | . . . Indirectly . | . . . Trap Hack Attempts . | . . . Triggered . | . . . Disarmed . | . . . Reprogrammed 9 | . 9 . Reused 1 | . 1 . Traps Extracted . | . . . Installed . | . . . Triggered 1 | . 1 . Machines | -11 -10 -10 ---------- Run | Yrd Mat Sub Machines Disabled 1 | . . 1 Max in Single Turn 1 | . . 1 Machines Repaired . | . . . Machines Dismantled . | . . . Machines Sabotaged . | . . . Overloaded Fab Kills . | . . . Hacking | -11 -10 -10 --------- Run | Yrd Mat Sub Machines Accessed 8 | . 6 2 Terminals 5 | . 5 . Fabricators . | . . . Repair Stations 1 | . 1 . Recycling Units . | . . . Scanalyzers . | . . . Garrison Access . | . . . Total Hacks 22 | . 19 3 Successful 15 | . 12 3 Failed 7 | . 7 . Catastrophic 3 | . 3 . Database Lockouts . | . . . Manual 10 | . 10 . Terminals 17 | . 17 . Fabricators . | . . . Repair Stations 2 | . 2 . Recycling Units . | . . . Scanalyzers . | . . . Garrison Access . | . . . Terminal Hacks 11 | . 8 3 Record 2 | . . 2 Robot Analysis 3 | . 3 . Locate Traps 3 | . 3 . Reprogram Traps 2 | . 2 . Derelict Proto ID Bank 1 | . . 1 Fabricator Hacks . | . . . Repair Station Hacks 2 | . 2 . Scan Component 1 | . 1 . Repair 1 | . 1 . Recycling Unit Hacks . | . . . Scanalyzer . | . . . Garrison Access Hacks . | . . . Unauthorized Hacks 2 | . 2 . Terminals 2 | . 2 . Botnet 1 | . 1 . Operators 1 | . 1 . Fabricators . | . . . Repair Stations . | . . . Recycling Units . | . . . Scanalyzers . | . . . Garrison Access . | . . . Data Cores Recovered . | . . . Used . | . . . Hacking Detections 6 | . 6 . Full Trace Events . | . . . Feedback Events . | . . . Feedback Blocked . | . . . Robot Schematics Acquired . | . . . Robots Built . | . . . Authchips . | . . . Time . | . . . Total Robot Build Rating . | . . . Part Schematics Acquired . | . . . Parts Built . | . . . Authchips . | . . . Time . | . . . Total Part Build Rating . | . . . Parts Repaired 1 | . 1 . Time 26 | . 26 . Parts Recycled . | . . . Recycled Matter . | . . . Retrieved Matter . | . . . Retrieved Components . | . . . Parts Scanalyzed . | . . . Part Schematics Acquired . | . . . Parts Damaged . | . . . Bothacking | -11 -10 -10 ------------ Run | Yrd Mat Sub Used RIF Installer . | . . . Robots Hacked . | . . . Non-combat . | . . . Combat . | . . . Robot Hacks Applied . | . . . Relay Couplers Released . | . . . Fabnet Peak Effective % . | . . . Robots Rewired . | . . . Allies Hacked . | . . . Hacks Repelled . | . . . Allies | -11 -10 -10 -------- Run | Yrd Mat Sub Total Allies . | . . . Largest Group . | . . . Highest-Rated Group . | . . . Highest-Rated Ally . | . . . Total Orders . | . . . Ally Attacks . | . . . Total Damage . | . . . Kills . | . . . Allies Corrupted . | . . . Allies Melted . | . . . Intel | -11 -10 -10 ------- Run | Yrd Mat Sub Robot Analysis Total 3 | . 3 . Derelict Logs Recovered 1 | . . 1 Drone Launches . | . . . Drone Recoveries . | . . . Exploration | -11 -10 -10 ------------- Run | Yrd Mat Sub Turns Passed 4516 | 269 2406 1841 Spaces Moved 1676 | 117 918 641 Core 9 | 9 . . Treads 1667 | 108 918 641 Legs . | . . . Wheels . | . . . Hover . | . . . Flight . | . . . Fastest Speed 50 | 50 160 240 Average Speed 227 | 155 223 247 Slowest Speed 250 | 160 240 250 Overloaded Moves . | . . . Propulsion Burnouts . | . . . Robots Hopped . | . . . Cave-ins Triggered . | . . . Exploration Rate (%) 44 | 7 96 29 Regions Visited 2 Branch Regions 1 Pre-discovered Areas . | . . . Known Exits Taken . | . . . Unknown Exits Taken 2 | 1 1 . Scrap Searched . | . . . Spaces Dug 5 | . 5 . Terrain Destroyed 12 | . 6 6 Melee . | . . . Projectile 6 | . 6 . AOE 6 | . . 6 Terrain Rammed . | . . . Walls Destroyed . | . . . Machines Disabled . | . . . Actions | -11 -10 -10 --------- Run | Yrd Mat Sub Total 2053 | 162 1119 772 Wait 130 | 15 76 39 Move 1674 | 116 917 641 Hop . | . . . Pick Up 32 | 3 18 11 Fast Attach 15 | 8 6 1 Attach 8 | . 3 5 Detach 3 | 1 2 . Swap 26 | . 9 17 Drop 15 | . 11 4 Fire 148 | 19 75 54 Melee . | . . . Ram . | . . . Kick . | . . . Crush 2 | . 2 . Escape Stasis . | . . . Rewire . | . . . Trap . | . . . Miscellaneous . | . . . Route ------- -11/Scrapyard -10/Materials (discovered 6 exits: *Mat x3 / *Min x2 / *Sub) -10/Subcaves History --------- Turn | Location | Event 8 | -11/Scrapyard | Discovered new exit (range 14) 270 | -11/Scrapyard | Entered Materials 313 | -10/Materials | Build established: Mutant 571 | -10/Materials | Repaired Lgt. Armor Plating 999 | -10/Materials | Discovered new exit (range 8) 1161 | -10/Materials | Discovered new exit (range 12) 1357 | -10/Materials | Discovered new exit (range 15) 1753 | -10/Materials | Discovered new exit (range 15) 1808 | -10/Materials | Identified exit to Materials 1969 | -10/Materials | Identified exit to Mines 2401 | -10/Materials | Discovered exit to Mines (range 10) 2669 | -10/Materials | Discovered new exit (range 2) 2676 | -10/Materials | Entered Subcaves 2825 | -10/Subcaves | Visited Clippyterm 3011 | -10/Subcaves | Visited 4L-MR0's lab 3043 | -10/Subcaves | Found Power Bank 3120 | -10/Subcaves | Shifting Twisted Machinery released Mak. Light Armor Plating 3164 | -10/Subcaves | Shifting Twisted Machinery released Spk. Treads 3263 | -10/Subcaves | A swath of the cavern ceiling suddenly collapsed 3377 | -10/Subcaves | Learned 4 Materials zone layouts 3428 | -10/Subcaves | Ambushed by Subdwellers from Twisted Machinery 3536 | -10/Subcaves | Core integrity fell below 50% 3845 | -10/Subcaves | Core integrity fell below 20% 4510 | -10/Subcaves | Ambushed by angry Subdweller bent on revenge 4517 | -10/Subcaves | Destroyed by K7-QDM(R) with Subdweller Machine Gun Last Messages --------------- 03592_ Acquired Sub. Power Source. 03736_ Acquired Spk. Treads. 03737_ Acquired 47 matter. 03840_ Lgt. Treads destroyed. 03846_ Critical hit (Destroy). 03852_ Spk. Treads destroyed. 03854_ T3-C3B(R) destroyed. 03868_ Critical hit (Meltdown: +250). 03869_ G9-FOF(R) destroyed. 03875_ Acquired 44 matter. 03882_ Acquired 18 matter. 03887_ Acquired Dirty Datajack. 03898_ Dropped Lgt. Armor Plating. 03899_ Acquired Scrap Shield Fragment. 04465_ J8-0JV(u) cries out in pain. 04465_ J8-0JV(u) destroyed. 04475_ Acquired Multitool. 04476_ Acquired 16 matter. 04510_ K7-QDM(R) angrily emerges from the Twisted Machinery. 04510_ K7-QDM(R): "ECOKILL!" Map ----- +----------------------------------------------------+ | ?????????????????????????????????????????????????? | | ?????????????????????????????????????????????????? | | ?????????????????????????????????????????????????? | | ?????????????????????????????????????????????????? | | ?????????????????????????????????????????????????? | | ?????????????????????????????????????????????????? | | ?????????????????????????????????????????????????? | | ?????????????????????????????????????????????????? | | ?????????????????????????????????????????????????? | | ?????????????????????????????????????????????????? | | ?????????????????????????????????????????????????? | | ?????????????????????????????????????????????????? | | ?????????????????????????????????????????????????? | | ?????????????????????????????????????????????????? | | ?????????????????????????????????????????????????? | | ???????????????????????????????##????????????????? | | ???????????????????????????????# ################? | | ??????????????????????????????## ## ""[ "# ## | | ?????????????????????#?????#### == | | ????????????????????? ??## # | | ????????????????????# # " "# # | | ??????????????????????? "# # | | ??????????????????????????# # ## | | ?????????????????????????##### ## # ### | | ???????????????????????### ## #?# ##?? | | ?????????????????????### @R #### #### ##??? | | ????????????????????## "" #?### ##?# #???? | | ????????????????????# " ##??######??# ##??? | | ???????????????????# "" ##????###### #### | | ???????????????????# """"" "##??## # | | ???????????????????##### " "" #### = ## ### | | ???????????????????????##" """ ## = ## # | | ????????????????????????##""### | | ?????????????????????????####?# | | ??????????????????????????????#### ## #### | | ?????????????????????????????????#############??## | | ?????????????????????????????????????????????????? | | ?????????????????????????????????????????????????? | | ?????????????????????????????????????????????????? | | ?????????????????????????????????????????????????? | | ?????????????????????????????????????????????????? | | ?????????????????????????????????????????????????? | | ?????????????????????????????????????????????????? | | ?????????????????????????????????????????????????? | | ?????????????????????????????????????????????????? | | ?????????????????????????????????????????????????? | | ?????????????????????????????????????????????????? | | ?????????????????????????????????????????????????? | | ?????????????????????????????????????????????????? | | ?????????????????????????????????????????????????? | +----------------------------------------------------+ Best States ------------- Heat Dissipation 35 Energy Generation 10 Energy Capacity 250 Matter Stores 300 Matter Capacity 300 Sight Range 21 Terrain Scan Range 16 Terrain Scan Density 10 Armor Coverage 150 Evasion (%) 40 Recoil Reduction 2 Item Schematics ----------------- None Robot Schematics ------------------ None Fabricated ------------ Nothing Alien Tech Used ----------------- None Achievements -------------- None Challenges ------------ None Game ------ Seed TrapSingularitySlayer Manual? 0 Play Time 00:21:08 Cumulative 449.4 hours Start 2024.01.20 @ 13:42:35 End 2024.01.20 @ 14:06:33 Sessions 1 Manual Loads 0 Difficulty Rogue Special Mode None Game No. 159 Rogue 144 Adventurer 15 Explorer 0 Win Type - Total 29 Types 8/3/7/2/2/0/4/2/1 Lore% 91 Gallery% 93 Achievement% 83 Wizard Run 0 Options --------- ASCII 0 Keyboard 0 Movement Numpad Keybinds 0 Fullscreen 1 Font 18/SmallcapsGlow Map View 76x50 Zoom Use 0% Tactical HUD 1 Map Filters NONE Filters NONE Steam 1 RUN: 881515ce-3f74-4466-b388-da9378d9933d